bitfinex-derivatives/quotes_BTCF0:USTF0_20260127
["timestamp","ask_amount","ask_price","bid_price","bid_amount"]
[1769490714336,0.12,88504.0,88481.0,0.68504]
[1769490714540,0.131313,88502.0,88482.0,0.011315]
[1769490714740,0.131313,88502.0,88490.0,0.16323508]
[1769490717442,0.011313,88502.0,88490.0,0.16323508]
[1769490718944,0.011313,88502.0,88483.0,0.011315]
[1769490719144,0.011313,88502.0,88490.0,0.16323508]
[1769490719338,0.011313,88499.0,88481.0,0.68504]
[1769490719644,0.011313,88497.0,88482.0,0.011315]
[1769490720039,9.02e-05,88498.0,88481.0,0.1518]
[1769490720230,9.02e-05,88498.0,88487.0,0.16323508]
[1769490720629,9.02e-05,88498.0,88481.0,0.1518]
[1769490720834,9.02e-05,88498.0,88486.0,0.011315]
[1769490721338,9.02e-05,88498.0,88481.0,0.1518]
[1769490721543,9.02e-05,88498.0,88488.0,0.16323508]
[1769490722945,0.011311,88513.0,88488.0,0.16323508]
[1769490722946,0.12,88515.0,88488.0,0.16323508]
[1769490723152,0.12,88515.0,88481.0,0.1518]
[1769490723153,0.011312,88512.0,88500.0,0.16323508]
[1769490724447,0.1018,88514.0,88500.0,0.16323508]
[1769490724644,0.12,88515.0,88500.0,0.16323508]
[1769490724844,0.12,88527.0,88504.0,0.17454808]
[1769490725042,0.12,88527.0,88510.0,0.16323508]
[1769490725241,0.209708,88539.0,88510.0,0.16323508]
[1769490725242,0.1018,88526.0,88510.0,0.16323508]
[1769490725439,0.1018,88525.0,88510.0,0.16323508]
[1769490726239,0.2218,88525.0,88510.0,0.16323508]
[1769490726444,0.01131,88522.0,88510.0,0.16323508]
[1769490730241,0.011309,88533.0,88513.0,0.011311]
[1769490730442,0.011309,88529.0,88519.0,0.16323508]
[1769490731248,0.01131,88527.0,88519.0,0.16323508]
[1769490731645,0.01131,88522.0,88510.0,0.16323508]
[1769490731848,0.01131,88525.0,88510.0,0.16323508]
[1769490733147,0.01131,88528.0,88510.0,0.16323508]
[1769490733742,0.01131,88526.0,88510.0,0.16323508]
[1769490736152,0.01131,88524.0,88510.0,0.16323508]
[1769490737951,0.01131,88522.0,88510.0,0.16323508]
[1769490742353,0.12,88530.0,88510.0,0.16323508]
[1769490742354,0.011311,88518.0,88510.0,0.16323508]
[1769490742548,0.12,88530.0,88510.0,0.16323508]
[1769490742549,0.01131,88521.0,88510.0,0.16323508]
[1769490744661,0.01131,88524.0,88510.0,0.16323508]
[1769490748551,0.01131,88527.0,88510.0,0.16323508]
[1769490751058,0.1018,88533.0,88510.0,0.16323508]
[1769490751059,0.01131,88528.0,88510.0,0.16323508]
[1769490753250,0.01131,88526.0,88510.0,0.16323508]
[1769490753860,0.01131,88524.0,88510.0,0.16323508]
[1769490754061,0.01131,88523.0,88510.0,0.16323508]
[1769490754261,0.01131,88523.0,88500.0,0.16323508]
[1769490754262,0.12,88529.0,88500.0,0.16323508]
[1769490754466,0.011312,88509.0,88501.0,0.1018]
[1769490754665,0.011312,88512.0,88501.0,0.1018]
[1769490755563,0.12,88518.0,88501.0,0.1018]
[1769490757257,0.011312,88512.0,88501.0,0.1018]
[1769490760657,0.12,88518.0,88501.0,0.1018]
[1769490760857,0.131311,88518.0,88501.0,0.1018]
[1769490761061,0.011311,88518.0,88501.0,0.1018]
[1769490762363,0.011311,88515.0,88501.0,0.1018]
[1769490765963,0.011311,88518.0,88501.0,0.1018]
[1769490767771,0.11311,88521.0,88501.0,0.113113]
[1769490769369,0.011311,88519.0,88501.0,0.113113]
[1769490769668,0.1018,88521.0,88501.0,0.1018]
[1769490771170,0.12,88520.0,88501.0,0.1018]
[1769490772474,0.011311,88516.0,88501.0,0.1018]
[1769490773369,0.12,88520.0,88501.0,0.1018]
[1769490773974,0.011311,88516.0,88501.0,0.1018]
[1769490775777,0.011311,88519.0,88501.0,0.1018]
[1769490776875,0.011311,88517.0,88501.0,0.1018]
[1769490778678,0.011311,88520.0,88501.0,0.1018]
[1769490779078,0.011311,88518.0,88501.0,0.1018]
[1769490780477,0.011311,88515.0,88501.0,0.1018]
[1769490781075,0.12,88521.0,88501.0,0.1018]
[1769490781781,0.011312,88506.0,88495.0,0.1018]
[1769490782077,0.011312,88506.0,88483.0,0.1355921]
[1769490782078,0.131311,88515.0,88488.0,0.09046718]
[1769490782279,0.131311,88515.0,88491.0,0.1018]
[1769490782280,0.011313,88501.0,88491.0,0.1018]
[1769490782786,0.011313,88504.0,88491.0,0.1018]
[1769490784479,0.011313,88502.0,88491.0,0.1018]
[1769490785082,0.011312,88505.0,88491.0,0.1018]
[1769490785581,0.12,88510.0,88492.0,0.00032778]
[1769490786178,0.011313,88505.0,88492.0,0.00032778]
[1769490787072,0.011313,88505.0,88474.0,0.011316]
[1769490787073,0.11999999,88491.0,88474.0,0.011316]
[1769490787277,0.011315,88488.0,88481.0,1e-06]
[1769490787474,0.011314,88491.0,88481.0,1e-06]
[1769490787677,0.011314,88492.0,88481.0,1e-06]
[1769490787877,0.011314,88497.0,88481.0,1e-06]
[1769490788286,0.011314,88495.0,88481.0,1e-06]
[1769490788590,0.011314,88495.0,88481.0,0.101801]
[1769490788792,0.12,88499.0,88481.0,0.101801]
[1769490789280,0.011314,88493.0,88481.0,0.101801]
[1769490789791,0.131314,88493.0,88481.0,0.101801]
[1769490791887,0.011314,88493.0,88481.0,0.101801]
[1769490792889,0.011314,88496.0,88481.0,0.101801]
[1769490793187,0.131314,88496.0,88481.0,0.101801]
[1769490793390,0.011314,88496.0,88481.0,0.101801]
[1769490793685,0.011314,88493.0,88481.0,0.101801]
[1769490793884,0.011313,88497.0,88481.0,0.101801]
[1769490794073,0.113113,88501.0,88483.0,0.011315]
[1769490794480,0.011313,88501.0,88483.0,0.011315]
[1769490794783,0.011313,88501.0,88483.0,0.298]
[1769490795984,0.011313,88501.0,88483.0,0.309315]
[1769490797286,0.011313,88501.0,88483.0,0.011315]
[1769490797486,0.011313,88501.0,88484.0,0.10184]
[1769490809999,0.12,88496.0,88473.0,0.00791206]
[1769490810188,0.12,88493.0,88473.0,0.00791206]
[1769490810390,0.011315,88486.0,88473.0,0.00791206]
[1769490811102,0.011314,88489.0,88473.0,0.00791206]
[1769490811998,0.12,88490.0,88473.0,0.00791206]
[1769490812200,0.011315,88487.0,88473.0,0.00791206]
[1769490815504,0.011314,88493.0,88473.0,0.01922806]
[1769490815700,0.011314,88493.0,88475.0,0.011316]
[1769490815899,0.12,88495.0,88474.0,0.011316]
[1769490816205,0.011314,88494.0,88474.0,0.011316]
[1769490817291,0.131314,88494.0,88474.0,0.011316]
[1769490817494,0.011314,88492.0,88473.0,0.00791206]
[1769490817689,0.12,88494.0,88474.0,0.011316]
[1769490819411,0.131314,88492.0,88474.0,0.011316]
[1769490822609,0.131314,88492.0,88473.0,0.00791206]
[1769490822811,0.131314,88492.0,88473.0,0.01922806]
[1769490824910,0.131314,88492.0,88475.0,0.011316]
[1769490828309,0.12,88492.0,88477.0,0.011316]
[1769490829711,0.12,88492.0,88480.0,0.16333095]
[1769490829916,0.113153,88501.0,88483.0,0.011315]
[1769490830103,0.131313,88501.0,88484.0,0.10184]
[1769490830310,0.12,88501.0,88490.0,0.16333095]
[1769490830917,0.12,88501.0,88484.0,0.10184]
[1769490831311,0.12,88501.0,88490.0,0.16333095]
[1769490832409,0.12,88506.0,88490.0,0.16333095]
[1769490835718,0.011312,88510.0,88490.0,0.16333095]
[1769490836022,0.131312,88510.0,88490.0,0.16333095]
[1769490836822,0.12,88506.0,88490.0,0.16333095]
[1769490844233,0.12,88510.0,88491.0,0.011314]
[1769490844431,0.12,88515.0,88500.0,0.16333095]
[1769490844632,0.12,88515.0,88500.0,0.26517095]
[1769490846334,0.131311,88515.0,88500.0,0.26517095]
[1769490846835,0.12,88511.0,88500.0,0.26517095]
[1769490852545,0.12,88519.0,88500.0,0.26517095]
[1769490852845,0.011311,88516.0,88500.0,0.26517095]
[1769490853435,0.011311,88515.0,88500.0,0.26517095]
[1769490853843,0.131311,88515.0,88500.0,0.10184]
[1769490854044,0.131311,88515.0,88500.0,0.26517095]
[1769490855845,0.011312,88513.0,88500.0,0.26517095]
[1769490857743,0.12,88515.0,88500.0,0.26517095]
[1769490859049,0.12,88519.0,88503.0,0.011313]
[1769490859548,0.131311,88519.0,88500.0,0.27648395]
[1769490860643,0.10184,88523.0,88500.0,0.26517095]
[1769490860644,0.131311,88517.0,88500.0,0.26517095]
[1769490866649,0.011311,88514.0,88500.0,0.26517095]
[1769490866949,0.131311,88517.0,88500.0,0.26517095]
[1769490867255,0.011311,88514.0,88500.0,0.26517095]
[1769490868557,0.12,88517.0,88500.0,0.26517095]
[1769490870957,0.12,88517.0,88501.0,0.011313]
[1769490871157,0.011311,88520.0,88507.0,0.16333095]
[1769490871356,0.12,88521.0,88504.0,0.011313]
[1769490875558,0.12,88521.0,88505.0,0.1018]
[1769490882962,0.12,88521.0,88510.0,0.16333095]
[1769490883163,0.12,88521.0,88505.0,0.1018]
[1769490885966,0.12,88521.0,88506.0,0.011312]
[1769490886167,0.12,88521.0,88510.0,0.16333095]
[1769490888860,0.12,88521.0,88511.0,0.53192]
[1769490890070,0.12,88521.0,88512.0,0.1018]
[1769490898872,0.12,88526.0,88512.0,0.1018]
[1769490899087,0.01131,88527.0,88512.0,0.1018]
[1769490899268,0.01131,88526.0,88512.0,0.1018]
[1769490899575,0.12,88528.0,88512.0,0.113111]
[1769490900377,0.01131,88527.0,88512.0,0.113111]
[1769490900577,0.13131,88528.0,88512.0,0.1018]
[1769490900878,0.13131,88528.0,88513.0,0.011311]
[1769490901971,0.13131,88528.0,88512.0,0.1018]
[1769490904875,0.13131,88528.0,88512.0,0.113111]
[1769490905282,0.12,88528.0,88514.0,0.011311]
[1769490905981,0.011309,88531.0,88514.0,0.011311]
[1769490906179,0.131309,88531.0,88514.0,0.011311]
[1769490906590,0.131309,88531.0,88516.0,0.011311]
[1769490907583,0.131309,88531.0,88522.0,0.01131]
[1769490907584,0.12,88531.0,88522.0,0.01131]
[1769490907781,0.12,88537.0,88522.0,0.01131]
[1769490907980,0.12,88535.0,88521.0,0.53628]
[1769490908283,0.12,88535.0,88521.0,0.54759]
[1769490908484,0.12,88535.0,88522.0,0.1018]
[1769490908780,0.131309,88535.0,88522.0,0.1018]
[1769490909180,0.131309,88533.0,88522.0,0.1018]
[1769490911881,0.12,88533.0,88522.0,0.1018]
[1769490912083,0.12,88539.0,88522.0,0.1018]
[1769490912282,0.12,88539.0,88526.0,0.01131]
[1769490912581,0.12,88537.0,88522.0,0.1018]
[1769490912770,0.12,88535.0,88523.0,0.53728]
[1769490912976,0.1095283,88533.0,88524.0,0.27908]
[1769490913277,0.011309,88532.0,88520.0,0.53736]
[1769490916081,0.011311,88520.0,88507.0,0.09046042]
[1769490916287,0.1018,88524.0,88501.0,0.12]
[1769490916483,0.011311,88516.0,88501.0,0.12]
[1769490918191,0.011311,88520.0,88502.0,0.12]
[1769490919491,0.1018,88523.0,88495.0,0.39264]
[1769490919791,0.1018,88523.0,88496.0,0.12]
[1769490920381,0.011311,88516.0,88498.0,0.12]
[1769490921598,0.011311,88516.0,88499.0,0.11954664]
[1769490923297,0.00136007,88515.0,88499.0,0.11954664]
[1769490923592,0.011311,88514.0,88499.0,0.11954664]
[1769490924199,0.00136007,88515.0,88499.0,0.11954664]
[1769490924388,0.1166104,88502.0,88494.0,0.08384875]
[1769490924588,0.1166104,88502.0,88488.0,0.1018]
[1769490924793,0.1166104,88500.0,88488.0,0.1018]
[1769490927088,0.1166104,88498.0,88488.0,0.1018]
[1769490927685,0.1166104,88498.0,88482.0,0.11662196]
[1769490928587,0.1166104,88496.0,88477.0,0.12793796]
[1769490928790,0.1166104,88496.0,88479.0,0.11662196]
[1769490928997,0.1279244,88494.0,88479.0,0.11662196]
[1769490929193,0.1279244,88494.0,88476.0,0.1018]
[1769490929598,0.1279244,88494.0,88476.0,0.21842196]
[1769490930098,0.1279244,88494.0,88477.0,0.11662196]
[1769490930698,0.1166104,88494.0,88477.0,0.12793796]
[1769490931497,0.1166104,88494.0,88476.0,0.1018]
[1769490931498,0.1166104,88494.0,88480.0,0.11662196]
[1769490935101,0.11302183,88501.0,88483.0,0.11662196]
[1769490935303,0.1018,88503.0,88489.0,0.011314]
[1769490935604,0.1018,88507.0,88490.0,0.11662196]
[1769490936093,0.1018,88508.0,88490.0,0.11662196]
[1769490936299,0.011312,88507.0,88490.0,0.11662196]
[1769490938105,0.011313,88504.0,88490.0,0.11662196]
[1769490939208,0.2184104,88508.0,88490.0,0.11662196]
[1769490939409,0.011313,88502.0,88490.0,0.11662196]
[1769490941001,0.011313,88500.0,88490.0,0.11662196]
[1769490941202,0.1279234,88498.0,88483.0,0.11662196]
[1769490942305,0.1166104,88502.0,88483.0,0.11662196]
[1769490943507,0.1166104,88500.0,88483.0,0.11662196]
[1769490943706,0.1279244,88494.0,88477.0,0.12793796]
[1769490944618,0.011314,88492.0,88477.0,0.11662196]
[1769490944822,0.1166104,88491.0,88477.0,0.11662196]
[1769490947226,0.011314,88495.0,88479.0,0.11662196]
[1769490947614,0.10184,88497.0,88479.0,0.11662196]
[1769490948221,0.10184,88497.0,88481.0,0.11662196]
[1769490949229,0.10184,88497.0,88481.0,0.12793696]
[1769490949732,0.10184,88500.0,88481.0,0.12793696]
[1769490950227,0.011313,88499.0,88481.0,0.12793696]
[1769490950727,0.011313,88499.0,88481.0,0.11662196]
[1769490951430,0.1279234,88497.0,88481.0,0.11662196]
[1769490951727,0.1166104,88488.0,88473.0,0.00791206]
[1769490951928,0.1166104,88482.0,88473.0,0.00791206]
[1769490956236,0.11732381,88487.0,88473.0,0.00791206]
[1769490956433,0.10184,88486.0,88473.0,0.12270387]
[1769490958229,0.11732381,88487.0,88473.0,0.12270387]
[1769490958437,0.21916381,88487.0,88473.0,0.12270387]
[1769490962235,0.11732381,88487.0,88473.0,0.12270387]
[1769490962439,0.10184,88489.0,88477.0,0.11479181]
[1769490966539,0.011314,88492.0,88477.0,0.11479181]
[1769490970149,0.23047781,88495.0,88479.0,0.11479181]
[1769490970650,0.011314,88493.0,88479.0,0.11479181]
[1769490971845,0.11732381,88494.0,88479.0,0.11479181]
[1769490972048,0.011314,88490.0,88479.0,0.11479181]
[1769490972744,0.11732381,88489.0,88475.0,0.11479181]
[1769490974445,0.011315,88488.0,88475.0,0.11479181]
[1769490978947,0.12863881,88488.0,88475.0,0.11479181]
[1769490979153,0.12863881,88488.0,88473.0,0.00791206]
[1769490980254,0.12863881,88488.0,88473.0,0.12270387]
[1769490983349,0.011315,88485.0,88473.0,0.12270387]
[1769490983748,0.11690339,88484.0,88473.0,0.00791206]
[1769490985257,0.011315,88487.0,88473.0,0.12011235]
[1769490988459,0.011315,88485.0,88473.0,0.12011235]
[1769490988660,0.12821839,88485.0,88473.0,0.12011235]
[1769490991461,0.011315,88483.0,88473.0,0.12011235]
[1769490993366,0.11690339,88485.0,88473.0,0.12011235]
[1769490993662,0.10184,88492.0,88473.0,0.12011235]
[1769490993663,0.011316,88475.0,88473.0,6e-08]
[1769490993858,0.11690339,88479.0,88468.0,0.10184]
[1769490994256,0.11690339,88477.0,88468.0,0.10184]
[1769490996769,0.011316,88476.0,88468.0,0.10184]
[1769490996969,0.12821939,88477.0,88468.0,0.10184]
[1769490997470,0.11690339,88477.0,88468.0,0.10184]
[1769491001176,0.12821939,88477.0,88468.0,0.10184]
[1769491003168,0.11690339,88477.0,88468.0,0.10184]
[1769491003474,0.11690339,88481.0,88468.0,0.10184]
[1769491003876,0.11690339,88477.0,88461.0,0.12351829]
[1769491004274,0.11690339,88476.0,88461.0,0.11220029]
[1769491005381,0.011316,88474.0,88461.0,0.11220029]
[1769491005879,0.11690339,88476.0,88461.0,0.11220029]
[1769491008372,0.11690339,88476.0,88462.0,0.011318]
[1769491010778,0.11690339,88476.0,88464.0,0.011318]
[1769491012277,0.11690339,88476.0,88466.0,0.011317]
[1769491012679,0.11690339,88476.0,88463.0,0.011318]
[1769491013276,0.11690339,88476.0,88465.0,0.011317]
[1769491013980,0.11690339,88476.0,88460.0,0.10941608]
[1769491014175,0.10184,88482.0,88468.0,0.011317]
[1769491014176,0.11274824,88480.0,88468.0,0.011317]
[1769491014979,0.11274824,88480.0,88470.0,0.011317]
[1769491016071,0.11274824,88480.0,88472.0,0.011317]
[1769491018978,0.11274824,88480.0,88461.0,0.10941608]
[1769491019172,0.11274824,88480.0,88470.0,0.011317]
[1769491020182,0.11274824,88480.0,88464.0,0.10941608]
[1769491020183,0.11274824,88480.0,88472.0,0.011317]
[1769491020379,0.11274824,88480.0,88469.0,0.011317]
[1769491021177,0.11274824,88480.0,88466.0,0.10941608]
[1769491021381,0.11274824,88480.0,88466.0,0.12073308]
[1769491024383,0.11274824,88480.0,88466.0,0.10941608]
[1769491028181,0.12406424,88480.0,88466.0,0.10941608]
[1769491028488,0.11274824,88480.0,88466.0,0.10941608]
[1769491029187,0.12406424,88479.0,88463.0,0.011318]
[1769491029686,0.12406424,88479.0,88463.0,0.12073408]
[1769491031775,0.12406424,88477.0,88463.0,0.10941608]
[1769491032187,0.12406424,88477.0,88460.0,0.10187539]
[1769491032886,0.11274824,88477.0,88462.0,0.12073408]
[1769491034183,0.11274824,88477.0,88464.0,0.12073408]
[1769491039285,0.11274824,88477.0,88466.0,0.011317]
[1769491039490,0.11274824,88480.0,88466.0,0.12073308]
[1769491040093,0.12406424,88480.0,88466.0,0.10941608]
[1769491041093,0.11274824,88480.0,88466.0,0.10941608]
[1769491041791,0.10184,88481.0,88466.0,0.10941608]
[1769491041792,0.12538093,88479.0,88466.0,0.10941608]
[1769491043287,0.13082776,88477.0,88462.0,0.20858292]
[1769491045395,0.13082776,88477.0,88463.0,0.23829735]
[1769491045594,0.13082776,88477.0,88463.0,0.09055739]
[1769491047394,0.10184,88481.0,88458.0,0.2374321]
[1769491047395,0.13082876,88467.0,88458.0,0.10184]
[1769491047793,0.13082876,88467.0,88452.0,0.00662385]
[1769491047993,0.13082876,88467.0,88453.0,0.14774582]
[1769491048193,0.13082876,88467.0,88452.0,0.00662385]
[1769491048389,0.11951176,88467.0,88452.0,0.00662385]
[1769491048693,0.11951176,88467.0,88453.0,0.011319]
[1769491049192,0.11951176,88467.0,88452.0,0.00662385]
[1769491049193,0.11951176,88467.0,88452.0,0.12464938]
[1769491049597,0.11951176,88467.0,88452.0,0.11811762]
[1769491050399,0.11951176,88467.0,88452.0,9.209e-05]
[1769491051899,0.13082876,88467.0,88452.0,9.209e-05]
[1769491052698,0.11951176,88467.0,88452.0,0.11811762]
[1769491052902,0.22135176,88467.0,88452.0,0.11811762]
[1769491053699,0.22135176,88467.0,88455.0,0.011319]
[1769491054202,0.11951176,88466.0,88455.0,0.011319]
[1769491057409,0.11951176,88466.0,88452.0,0.12943662]
[1769491057609,0.11951176,88466.0,88454.0,0.011319]
[1769491060705,0.11951176,88466.0,88452.0,9.209e-05]
[1769491062606,0.11951176,88466.0,88453.0,0.011319]
[1769491064706,0.11951176,88466.0,88455.0,0.011319]
[1769491069610,0.11951176,88466.0,88452.0,0.01141109]
[1769491070924,0.11951176,88466.0,88452.0,9.209e-05]
[1769491072410,0.11314251,88464.0,88450.0,0.011319]
[1769491077315,0.11314251,88464.0,88452.0,0.011319]
[1769491078505,0.11314251,88464.0,88453.0,0.14557637]
[1769491078705,0.11314251,88464.0,88452.0,0.011319]
[1769491078907,0.11314251,88464.0,88453.0,0.14557635]
[1769491079205,0.11314251,88464.0,88452.0,0.011319]
[1769491079411,0.11314251,88464.0,88453.0,0.14557966]
[1769491079603,0.11314251,88464.0,88452.0,0.011319]
[1769491081610,0.11314251,88464.0,88440.0,0.71341246]
[1769491081611,0.11314251,88464.0,88445.0,0.24557169]
[1769491081809,0.11314251,88464.0,88447.0,0.10997959]
[1769491082010,0.11314251,88464.0,88448.0,0.14556859]
[1769491082308,0.11314251,88464.0,88449.0,0.14556859]
[1769491082511,0.11314251,88464.0,88450.0,0.14556859]
[1769491082710,0.11314251,88464.0,88451.0,0.14556859]
[1769491082905,0.11314251,88464.0,88450.0,0.16344264]
[1769491083105,0.11314251,88464.0,88451.0,0.14557012]
[1769491083307,0.11314251,88464.0,88450.0,0.16344264]
[1769491083507,0.11314251,88464.0,88452.0,0.011319]
[1769491084914,0.4512,88471.0,88457.0,0.011318]
[1769491085116,0.10184,88467.0,88460.0,0.16344264]
[1769491085312,0.10184,88467.0,88457.0,0.011318]
[1769491086414,0.10184,88467.0,88456.0,0.011319]
[1769491087015,0.21498251,88467.0,88456.0,0.011319]
[1769491088414,0.11314251,88466.0,88456.0,0.011319]
[1769491089417,0.11314251,88466.0,88451.0,0.10997959]
[1769491089611,0.11314251,88466.0,88452.0,0.14557143]
[1769491089914,0.11314251,88466.0,88454.0,0.011319]
[1769491090315,0.11314251,88466.0,88452.0,0.011319]
[1769491091111,0.11314251,88466.0,88454.0,0.011319]
[1769491093013,0.11314251,88466.0,88456.0,0.011319]
[1769491095516,0.11314251,88466.0,88458.0,0.011318]
[1769491096124,0.11314251,88466.0,88454.0,0.011319]
[1769491096420,0.11314251,88466.0,88456.0,0.011319]
[1769491097023,0.11314251,88466.0,88458.0,0.011318]
[1769491097223,0.10184,88473.0,88458.0,0.011318]
[1769491097418,0.11314251,88472.0,88458.0,0.011318]
[1769491098121,0.11314251,88472.0,88460.0,0.011318]
[1769491100325,0.11314251,88472.0,88461.0,0.10997959]
[1769491101028,0.11528785,88482.0,88461.0,0.10997959]
[1769491101328,0.11528785,88482.0,88465.0,0.011317]
[1769491102216,0.11528785,88480.0,88461.0,0.10997959]
[1769491103425,0.11528785,88480.0,88463.0,0.011318]
[1769491104625,0.11528785,88480.0,88465.0,0.011317]
[1769491106722,0.11528785,88480.0,88464.0,0.011318]
[1769491106922,0.11528785,88480.0,88466.0,0.011317]
[1769491107724,0.11528785,88480.0,88468.0,0.011317]
[1769491107926,0.11528785,88480.0,88470.0,0.16344264]
[1769491108228,0.11528785,88480.0,88468.0,0.1305618]
[1769491108428,0.11528785,88480.0,88470.0,0.16344264]
[1769491108630,0.10184,88485.0,88470.0,0.16344264]
[1769491108824,0.10184,88485.0,88475.0,0.011316]
[1769491108825,0.21925362,88485.0,88475.0,0.011316]
[1769491109324,0.11741362,88484.0,88475.0,0.011316]
[1769491109524,0.11741362,88484.0,88472.0,0.011317]
[1769491110727,0.11741362,88484.0,88474.0,0.011316]
[1769491111331,0.11741362,88484.0,88470.0,0.16344264]
[1769491112219,0.11741362,88484.0,88470.0,0.28268744]
[1769491112531,0.11741362,88484.0,88471.0,0.011317]
[1769491113634,0.11741362,88484.0,88475.0,0.011316]
[1769491115632,0.11741362,88484.0,88474.0,0.011316]
[1769491123442,0.11741362,88484.0,88471.0,0.011317]
[1769491123841,0.11741362,88484.0,88473.0,0.011316]
[1769491126046,0.11741362,88484.0,88475.0,0.011316]
[1769491127951,0.11741362,88484.0,88477.0,0.011316]
[1769491128549,0.11741362,88484.0,88470.0,0.26528264]
[1769491129548,0.11741362,88484.0,88474.0,0.011316]
[1769491130745,0.11741362,88484.0,88476.0,0.011316]
[1769491131250,0.11741362,88484.0,88478.0,0.011316]
[1769491136150,0.11674124,88493.0,88478.0,0.011316]
[1769491138359,0.11674124,88493.0,88475.0,0.11688322]
[1769491140356,0.11674124,88493.0,88479.0,0.011316]
[1769491141058,0.11674124,88493.0,88471.0,0.19236474]
[1769491141257,0.11674124,88493.0,88477.0,0.011316]
[1769491141645,0.11674124,88493.0,88471.0,0.19236474]
[1769491141646,0.11674124,88493.0,88472.0,0.11688322]
[1769491141842,0.11674124,88493.0,88478.0,0.011316]
[1769491142255,0.11674124,88493.0,88475.0,0.11688322]
[1769491144462,0.11674124,88493.0,88479.0,0.011316]
[1769491145259,0.11674124,88493.0,88481.0,0.011315]
[1769491147651,0.11674124,88493.0,88478.0,0.011316]
[1769491147853,0.11674124,88493.0,88480.0,0.011316]
[1769491150366,0.11674124,88493.0,88482.0,0.011315]
[1769491150859,0.11674124,88493.0,88471.0,0.10184]
[1769491151762,0.11674124,88491.0,88472.0,0.011317]
[1769491151963,0.11674124,88491.0,88474.0,0.011316]
[1769491152159,0.11674124,88491.0,88471.0,0.10184]
[1769491153365,0.11674124,88491.0,88474.0,0.011316]
[1769491154466,0.11674124,88489.0,88474.0,0.011316]
[1769491161662,0.11674124,88489.0,88471.0,0.10184]
[1769491162170,0.11674124,88489.0,88471.0,0.19236474]
[1769491162363,0.11674124,88489.0,88475.0,0.011316]
[1769491165472,0.11674124,88489.0,88473.0,0.09052474]
[1769491166666,0.11674124,88489.0,88474.0,0.011316]
[1769491167268,0.11674124,88489.0,88474.0,0.10184074]
[1769491170674,0.11674124,88489.0,88474.0,0.011316]
[1769491172171,0.11910882,88487.0,88472.0,0.09052474]
[1769491172373,0.11910882,88485.0,88468.0,0.113157]
[1769491172670,0.11401481,88494.0,88469.0,0.14947158]
[1769491172671,0.11910882,88483.0,88469.0,0.14947158]
[1769491172874,0.11910882,88483.0,88470.0,0.14947158]
[1769491173169,0.11910882,88483.0,88471.0,0.14947158]
[1769491173474,0.11910882,88483.0,88469.0,0.011317]
[1769491173672,0.11910882,88483.0,88470.0,0.1494721]
[1769491173968,0.11910882,88483.0,88471.0,0.1494721]
[1769491174174,0.11910882,88483.0,88469.0,0.011317]
[1769491174375,0.11910882,88483.0,88470.0,0.1494729]
[1769491174575,0.11910882,88483.0,88471.0,0.1494729]
[1769491174776,0.11910882,88483.0,88469.0,0.011317]
[1769491174976,0.11910882,88483.0,88470.0,0.14947295]
[1769491175179,0.11910882,88483.0,88471.0,0.14947295]
[1769491175376,0.11910882,88483.0,88468.0,0.10184]
[1769491175578,0.11910882,88483.0,88469.0,0.14947432]
[1769491175878,0.11910882,88483.0,88468.0,0.10184]
[1769491176069,0.11910882,88483.0,88469.0,0.1494748]
[1769491176377,0.11910882,88483.0,88468.0,0.10184]
[1769491176578,0.11910882,88483.0,88469.0,0.14946721]
[1769491176773,0.11910882,88483.0,88468.0,0.10184]
[1769491176973,0.11910882,88483.0,88469.0,0.14946721]
[1769491177174,0.11910882,88483.0,88468.0,0.10184]
[1769491177376,0.11910882,88483.0,88469.0,0.14946228]
[1769491177577,0.11910882,88483.0,88468.0,0.10184]
[1769491177779,0.11910882,88483.0,88469.0,0.14946225]
[1769491177974,0.11910882,88483.0,88468.0,0.10184]
[1769491178278,0.11910882,88483.0,88469.0,0.14946221]
[1769491178474,0.13042382,88483.0,88468.0,0.10184]
[1769491178680,0.11910882,88480.0,88463.0,0.011318]
[1769491178872,0.11910882,88480.0,88464.0,0.14945646]
[1769491178873,0.13042482,88480.0,88464.0,0.14945646]
[1769491179073,0.13042482,88480.0,88465.0,0.14945646]
[1769491179379,0.13042482,88480.0,88466.0,0.14945646]
[1769491179578,0.13042482,88480.0,88463.0,0.011318]
[1769491179779,0.13042482,88480.0,88464.0,0.14943841]
[1769491179980,0.13042482,88480.0,88465.0,0.14943841]
[1769491180179,0.13042482,88480.0,88466.0,0.14943841]
[1769491180381,0.13042482,88480.0,88463.0,0.011318]
[1769491180583,0.13042482,88480.0,88464.0,0.14942486]
[1769491180780,0.13042482,88480.0,88465.0,0.14942486]
[1769491180981,0.13042482,88480.0,88464.0,0.1355921]
[1769491180982,0.13042482,88480.0,88466.0,0.14942486]
[1769491181183,0.13042482,88480.0,88467.0,0.14942486]
[1769491181380,0.13042482,88480.0,88463.0,0.15344097]
[1769491181579,0.13042482,88480.0,88464.0,0.28402644]
[1769491181778,0.13042482,88480.0,88465.0,0.14843434]
[1769491181982,0.13042482,88480.0,88466.0,0.14843434]
[1769491182284,0.13042482,88480.0,88467.0,0.14843434]
[1769491182473,0.13042482,88480.0,88468.0,0.14843434]
[1769491182671,0.13042482,88480.0,88464.0,0.1355921]
[1769491182872,0.13042482,88480.0,88465.0,0.14842543]
[1769491183173,0.13042482,88480.0,88466.0,0.14842543]
[1769491183369,0.13042482,88480.0,88467.0,0.14842543]
[1769491183570,0.13042482,88480.0,88464.0,0.1355921]
[1769491183571,0.13042482,88480.0,88468.0,0.14842543]
[1769491183778,0.13042482,88480.0,88465.0,0.011318]
[1769491184086,0.13042482,88480.0,88466.0,0.14841789]
[1769491184274,0.13042482,88480.0,88467.0,0.14841789]
[1769491184475,0.13042482,88480.0,88465.0,0.011318]
[1769491184675,0.13042482,88480.0,88466.0,0.14841126]
[1769491184875,0.13042482,88480.0,88467.0,0.14841126]
[1769491185076,0.13042482,88480.0,88465.0,0.011318]
[1769491185284,0.13042482,88480.0,88466.0,0.14841126]
[1769491185589,0.13042482,88480.0,88467.0,0.14841126]
[1769491185882,0.13042482,88480.0,88465.0,0.011318]
[1769491186070,0.13042482,88480.0,88466.0,0.14840552]
[1769491186275,0.13042482,88480.0,88467.0,0.14840552]